[Event "3rd FIDE WCCC Blitz G12 2019"]
[Site "Minsk"]
[Date "2019.08.18"]
[Round "5.6"]
[White "Petrova, Elizaveta"]
[Black "Korovina, Yana"]
[Result "1/2-1/2"]
[ECO "A00"]
[WhiteElo "1573"]
[BlackElo "1511"]
[Annotator "NA"]
[PlyCount "80"]
[EventDate "2019.08.18"]
[EventType "swiss"]
[EventCountry "BLR"]
[SourceTitle "playchess.com"]
[Source "ChessBase"]
[SourceQuality "1"]
[TimeControl "300+2"]

1. c3 {[%emt 0:00:00]} d5 {[%emt 0:00:03]} 2. d3 {[%emt 0:00:01]} Nf6 {[%emt 0:00:03]} 3. h3 {[%emt 0:00:02]} e5 {[%emt 0:00:02]} 4. Qa4+ {[%emt 0:00:03]} Bd7 {[%emt 0:00:04]} 5. Qc2 {[%emt 0:00:02]} Nc6 {[%emt 0:00:06]} 6. Nd2 {[%emt 0:00:02]} Bc5 {[%emt 0:00:07]} 7. g4 {[%emt 0:00:06]} Qe7 {[%emt 0:00:23]} 8. Bg2 {[%emt 0:00:02]} Bb6 {[%emt 0:00:09]} 9. Nf1 {[%emt 0:00:03]} Be6 {[%emt 0:00:15]} 10. Ng3 {[%emt 0:00:08]} Qc5 {[%emt 0:00:34]} 11. e3 {[%emt 0:00:26]} Rb8 {[%emt 0:00:18]} 12. N1e2 {[%emt 0:00:08]} d4 {[%emt 0:00:06]} 13. Bxc6+ {[%emt 0:00:37]} Qxc6 {[%emt 0:00:07]} 14. e4 {[%emt 0:00:21]} dxc3 {[%emt 0:00:11]} 15. bxc3 {[%emt 0:00:09]} Nd7 {[%emt 0:00:05]} 16. Nf5 {[%emt 0:00:33]} Bxf5 {[%emt 0:00:11]} 17. gxf5 {[%emt 0:00:01]} Nc5 {[%emt 0:00:01]} 18. Be3 {[%emt 0:00:23]} Rd8 {[%emt 0:00:09]} 19. Rd1 {[%emt 0:00:16]} f6 {[%emt 0:00:05]} 20. Bxc5 {[%emt 0:00:09]} Bxc5 {[%emt 0:00:01]} 21. Rg1 {[%emt 0:00:12]} Rd7 {[%emt 0:00:07]} 22. Ng3 {[%emt 0:00:06]} Qb6 {[%emt 0:00:05]} 23. Rg2 {[%emt 0:00:13]} Rf7 {[%emt 0:00:18]} 24. Qb3 {[%emt 0:00:01]} Qxb3 {[%emt 0:00:10]} 25. axb3 {[%emt 0:00:01]} g6 {[%emt 0:00:03]} 26. Ke2 {[%emt 0:00:07]} Rg8 {[%emt 0:00:09]} 27. Rdg1 {[%emt 0:00:03]} g5 {[%emt 0:00:05]} 28. Nf1 {[%emt 0:00:06]} Rh8 {[%emt 0:00:11]} 29. h4 {[%emt 0:00:05]} h6 {[%emt 0:00:01]} 30. h5 {[%emt 0:00:04]} Rd7 {[%emt 0:00:07]} 31. Ne3 {[%emt 0:00:02]} Bxe3 {[%emt 0:00:04]} 32. Kxe3 {[%emt 0:00:04]} Ke7 {[%emt 0:00:01]} 33. Ra1 {[%emt 0:00:05]} Rhd8 {[%emt 0:00:04]} 34. Rd1 {[%emt 0:00:05]} Rd6 {[%emt 0:00:03]} 35. f3 {[%emt 0:00:04]} Rc6 {[%emt 0:00:06]} 36. Rc2 {[%emt 0:00:15]} a6 {[%emt 0:00:10]} 37. Ra1 {[%emt 0:00:12]} Rcd6 {[%emt 0:00:01]} 38. Rd2 {[%emt 0:00:01]} Rc6 {[%emt 0:00:02]} 39. Rc2 {[%emt 0:00:16]} Rcd6 {[%emt 0:00:01]} 40. Rd2 {[%emt 0:00:02]} Rc6 {[%emt 0:00:02]} 1/2-1/2

[Event "3rd FIDE WCCC Blitz G12 2019"]
[Site "Minsk"]
[Date "2019.08.18"]
[Round "6.1"]
[White "Vu, My Linh"]
[Black "Nguyen, Le Cam Hien"]
[Result "1/2-1/2"]
[ECO "A80"]
[WhiteElo "1467"]
[BlackElo "1579"]
[Annotator "NA"]
[PlyCount "103"]
[EventDate "2019.08.18"]
[EventType "swiss"]
[EventCountry "BLR"]
[SourceTitle "playchess.com"]
[Source "ChessBase"]
[SourceQuality "1"]
[TimeControl "300+2"]

1. d4 {[%emt 0:00:00]} f5 {[%emt 0:00:00]} 2. Nf3 {[%emt 0:00:01]} Nf6 {[%emt 0:00:00]} 3. c4 {[%emt 0:00:01]} e6 {[%emt 0:00:02]} 4. Nc3 {[%emt 0:00:02]} d6 {[%emt 0:00:01]} 5. g3 {[%emt 0:00:02]} Be7 {[%emt 0:00:03]} 6. Bg2 {[%emt 0:00:01]} O-O {[%emt 0:00:04]} 7. O-O {[%emt 0:00:02]} h6 {[%emt 0:00:03]} 8. Nd2 {[%emt 0:00:07]} Nbd7 {[%emt 0:00:11]} 9. e4 {[%emt 0:00:02]} fxe4 {[%emt 0:00:28]} 10. Ndxe4 {[%emt 0:00:02]} e5 {[%emt 0:00:05]} 11. d5 {[%emt 0:00:15]} Nxe4 {[%emt 0:00:05]} 12. Nxe4 {[%emt 0:00:03]} Nf6 {[%emt 0:00:03]} 13. b4 {[%emt 0:00:07]} Bf5 {[%emt 0:00:11]} 14. Nxf6+ {[%emt 0:00:39]} Bxf6 {[%emt 0:00:02]} 15. Bb2 {[%emt 0:00:02]} Qd7 {[%emt 0:00:11]} 16. c5 {[%emt 0:00:07]} Be7 {[%emt 0:00:15]} 17. Rc1 {[%emt 0:00:03]} Bh3 {[%emt 0:00:08]} 18. c6 {[%emt 0:00:07]} bxc6 {[%emt 0:00:09]} 19. dxc6 {[%emt 0:00:01]} Qf5 {[%emt 0:00:18]} 20. Qd5+ {[%emt 0:00:30]} Kh8 {[%emt 0:00:01]} 21. b5 {[%emt 0:00:09]} Bxg2 {[%emt 0:00:05]} 22. Qxg2 {[%emt 0:00:04]} Rab8 {[%emt 0:00:09]} 23. a4 {[%emt 0:00:02]} Bg5 {[%emt 0:00:14]} 24. Rc4 {[%emt 0:00:26]} Qd3 {[%emt 0:00:08]} 25. Qe4 {[%emt 0:00:11]} Qxe4 {[%emt 0:00:24]} 26. Rxe4 {[%emt 0:00:02]} a6 {[%emt 0:00:02]} 27. f4 {[%emt 0:00:29]} exf4 {[%emt 0:00:09]} 28. gxf4 {[%emt 0:00:02]} Bh4 {[%emt 0:00:12]} 29. f5 {[%emt 0:00:07]} Bg5 {[%emt 0:00:04]} 30. h4 {[%emt 0:00:03]} Bf6 {[%emt 0:00:05]} 31. Bxf6 {[%emt 0:00:05]} Rxf6 {[%emt 0:00:01]} 32. bxa6 {[%emt 0:00:07]} Ra8 {[%emt 0:00:14]} 33. Rff4 {[%emt 0:00:45]} Rxa6 {[%emt 0:00:02]} 34. Re8+ {[%emt 0:00:34]} Kh7 {[%emt 0:00:02]} 35. Re6 {[%emt 0:00:04]} Rxc6 {[%emt 0:00:10]} 36. Rxf6 {[%emt 0:00:04]} gxf6 {[%emt 0:00:01]} 37. a5 {[%emt 0:00:02]} Rc1+ {[%emt 0:00:08]} 38. Rf1 {[%emt 0:00:12]} Rc5 {[%emt 0:00:31]} 39. Ra1 {[%emt 0:00:06]} Rb5 {[%emt 0:00:02]} 40. a6 {[%emt 0:00:02]} Rb8 {[%emt 0:00:01]} 41. a7 {[%emt 0:00:01]} Ra8 {[%emt 0:00:01]} 42. Kf2 {[%emt 0:00:01]} Kg7 {[%emt 0:00:04]} 43. Kf3 {[%emt 0:00:01]} d5 {[%emt 0:00:03]} 44. Ke3 {[%emt 0:00:03]} c5 {[%emt 0:00:02]} 45. Kd3 {[%emt 0:00:10]} Kf7 {[%emt 0:00:03]} 46. Ra6 {[%emt 0:00:07]} Ke7 {[%emt 0:00:06]} 47. h5 {[%emt 0:00:02]} Kf7 {[%emt 0:00:08]} 48. Kc3 {[%emt 0:00:01]} Ke7 {[%emt 0:00:03]} 49. Kd3 {[%emt 0:00:01]} Kf7 {[%emt 0:00:01]} 50. Kc3 {[%emt 0:00:02]} Ke7 {[%emt 0:00:01]} 51. Kd3 {[%emt 0:00:02]} Kf7 {[%emt 0:00:01]} 52. Kc3 {[%emt 0:00:03]} 1/2-1/2

[Event "3rd FIDE WCCC Blitz G12 2019"]
[Site "Minsk"]
[Date "2019.08.18"]
[Round "6.2"]
[White "Vlasova, Olesia"]
[Black "Szczotka, Klara"]
[Result "1-0"]
[ECO "A13"]
[WhiteElo "1799"]
[BlackElo "1732"]
[Annotator "NA"]
[PlyCount "162"]
[EventDate "2019.08.18"]
[EventType "swiss"]
[EventCountry "BLR"]
[SourceTitle "playchess.com"]
[Source "ChessBase"]
[SourceQuality "1"]
[TimeControl "300+2"]

1. Nf3 {[%emt 0:00:00]} Nf6 {[%emt 0:00:00]} 2. c4 {[%emt 0:00:00]} d5 {[%emt 0:00:04]} 3. g3 {[%emt 0:00:02]} e6 {[%emt 0:00:11]} 4. Bg2 {[%emt 0:00:03]} Bd6 {[%emt 0:00:07]} 5. d4 {[%emt 0:00:09]} Nc6 {[%emt 0:00:36]} 6. O-O {[%emt 0:00:10]} O-O {[%emt 0:00:03]} 7. Qc2 {[%emt 0:00:20]} Re8 {[%emt 0:00:16]} 8. Nbd2 {[%emt 0:00:36]} Bd7 {[%emt 0:00:25]} 9. e4 {[%emt 0:00:06]} dxe4 {[%emt 0:00:42]} 10. Nxe4 {[%emt 0:00:03]} Nxe4 {[%emt 0:00:02]} 11. Qxe4 {[%emt 0:00:02]} e5 {[%emt 0:01:00]} 12. d5 {[%emt 0:00:01]} f5 {[%emt 0:00:31]} 13. Qe2 {[%emt 0:00:13]} Nd4 {[%emt 0:00:19]} 14. Nxd4 {[%emt 0:00:08]} exd4 {[%emt 0:00:02]} 15. Qd3 {[%emt 0:00:06]} Qf6 {[%emt 0:00:09]} 16. Bd2 {[%emt 0:00:11]} c5 {[%emt 0:00:16]} 17. dxc6 {[%emt 0:00:15]} Bxc6 {[%emt 0:00:01]} 18. Rfe1 {[%emt 0:00:13]} Bxg2 {[%emt 0:00:06]} 19. Kxg2 {[%emt 0:00:01]} Bc5 {[%emt 0:00:05]} 20. b4 {[%emt 0:00:09]} Bf8 {[%emt 0:00:14]} 21. a3 {[%emt 0:00:15]} Rac8 {[%emt 0:00:05]} 22. c5 {[%emt 0:00:05]} Qc6+ {[%emt 0:00:05]} 23. Kg1 {[%emt 0:00:06]} Qd5 {[%emt 0:00:04]} 24. Bc3 {[%emt 0:01:00]} Red8 {[%emt 0:00:09]} 25. Rad1 {[%emt 0:00:17]} b6 {[%emt 0:00:12]} 26. Qxd4 {[%emt 0:00:39]} Qxd4 27. Rxd4 {[%emt 0:00:08]} Rxd4 {[%emt 0:00:04]} 28. Bxd4 {[%emt 0:00:01]} bxc5 {[%emt 0:00:01]} 29. Rc1 {[%emt 0:00:10]} c4 {[%emt 0:00:04]} 30. Bxa7 {[%emt 0:00:07]} Ra8 {[%emt 0:00:02]} 31. Bd4 {[%emt 0:00:01]} Rxa3 {[%emt 0:00:02]} 32. Rxc4 {[%emt 0:00:01]} Ra4 {[%emt 0:00:02]} 33. Bc3 {[%emt 0:00:04]} Ra3 34. Kg2 {[%emt 0:00:04]} Rb3 {[%emt 0:00:04]} 35. Kf1 {[%emt 0:00:06]} Kf7 {[%emt 0:00:02]} 36. Ke2 {[%emt 0:00:03]} Ke6 {[%emt 0:00:00]} 37. Kd3 {[%emt 0:00:03]} Kd5 {[%emt 0:00:03]} 38. Rd4+ {[%emt 0:00:04]} Kc6 {[%emt 0:00:02]} 39. Kc2 {[%emt 0:00:05]} Ra3 {[%emt 0:00:02]} 40. Kb2 {[%emt 0:00:03]} Ra7 {[%emt 0:00:03]} 41. Kb3 {[%emt 0:00:02]} Rb7 {[%emt 0:00:02]} 42. Rf4 {[%emt 0:00:05]} g6 {[%emt 0:00:01]} 43. Rc4+ {[%emt 0:00:02]} Kd5 {[%emt 0:00:03]} 44. Rd4+ {[%emt 0:00:01]} Kc6 {[%emt 0:00:02]} 45. Rd3 {[%emt 0:00:02]} Rb5 {[%emt 0:00:02]} 46. f4 {[%emt 0:00:02]} Rb7 {[%emt 0:00:01]} 47. Re3 {[%emt 0:00:01]} Kd7 {[%emt 0:00:04]} 48. Kc4 {[%emt 0:00:05]} Kd6 {[%emt 0:00:03]} 49. Rd3+ {[%emt 0:00:03]} Ke6 {[%emt 0:00:01]} 50. Re3+ {[%emt 0:00:02]} Kd6 {[%emt 0:00:01]} 51. Bd4 {[%emt 0:00:02]} Kc6 {[%emt 0:00:01]} 52. Bc5 {[%emt 0:00:03]} Bxc5 {[%emt 0:00:02]} 53. bxc5 {[%emt 0:00:01]} Rb1 {[%emt 0:00:03]} 54. Re6+ {[%emt 0:00:01]} Kd7 {[%emt 0:00:00]} 55. Rd6+ {[%emt 0:00:02]} Kc7 {[%emt 0:00:01]} 56. Rd2 {[%emt 0:00:03]} Rc1+ {[%emt 0:00:01]} 57. Kd5 {[%emt 0:00:01]} Rb1 {[%emt 0:00:03]} 58. Rc2 {[%emt 0:00:02]} Rd1+ {[%emt 0:00:02]} 59. Ke6 {[%emt 0:00:01]} Kc6 {[%emt 0:00:01]} 60. Kf6 {[%emt 0:00:02]} Rd7 {[%emt 0:00:02]} 61. h4 {[%emt 0:00:04]} Ra7 {[%emt 0:00:01]} 62. h5 {[%emt 0:00:02]} gxh5 {[%emt 0:00:03]} 63. Kxf5 {[%emt 0:00:01]} Rg7 {[%emt 0:00:02]} 64. Rc3 {[%emt 0:00:03]} Rg4 {[%emt 0:00:03]} 65. Ke6 {[%emt 0:00:03]} Rg6+ {[%emt 0:00:01]} 66. Ke5 {[%emt 0:00:01]} Rg8 {[%emt 0:00:06]} 67. f5 {[%emt 0:00:02]} Re8+ {[%emt 0:00:01]} 68. Kf6 {[%emt 0:00:01]} Rf8+ {[%emt 0:00:02]} 69. Ke6 {[%emt 0:00:01]} Re8+ {[%emt 0:00:01]} 70. Kf7 {[%emt 0:00:00]} Re5 {[%emt 0:00:02]} 71. f6 {[%emt 0:00:02]} Re1 {[%emt 0:00:05]} 72. Kf8 {[%emt 0:00:01]} Rf1 {[%emt 0:00:01]} 73. f7 {[%emt 0:00:01]} Rf2 {[%emt 0:00:04]} 74. Re3 {[%emt 0:00:03]} Kxc5 {[%emt 0:00:01]} 75. Ke7 {[%emt 0:00:01]} Kd5 {[%emt 0:00:02]} 76. f8=Q {[%emt 0:00:03]} Rxf8 77. Kxf8 {[%emt 0:00:01]} Kd4 {[%emt 0:00:02]} 78. Re7 {[%emt 0:00:02]} h6 {[%emt 0:00:02]} 79. Kg7 {[%emt 0:00:01]} Kd5 {[%emt 0:00:01]} 80. Kxh6 {[%emt 0:00:02]} Kd6 {[%emt 0:00:01]} 81. Re1 {[%emt 0:00:01]} Kd5 1-0

[Event "3rd FIDE WCCC Blitz G12 2019"]
[Site "Minsk"]
[Date "2019.08.18"]
[Round "6.3"]
[White "Kaldarova, Ayaulym"]
[Black "Zhapova, Yana"]
[Result "0-1"]
[ECO "D30"]
[WhiteElo "1476"]
[BlackElo "1809"]
[Annotator "NA"]
[PlyCount "114"]
[EventDate "2019.08.18"]
[EventType "swiss"]
[EventCountry "BLR"]
[SourceTitle "playchess.com"]
[Source "ChessBase"]
[SourceQuality "1"]
[TimeControl "300+2"]

1. d4 {[%emt 0:00:00]} d5 {[%emt 0:00:00]} 2. c4 {[%emt 0:00:00]} e6 {[%emt 0:00:04]} 3. cxd5 exd5 {[%emt 0:00:01]} 4. Nc3 {[%emt 0:00:04]} c6 {[%emt 0:00:06]} 5. Qc2 {[%emt 0:00:02]} g6 {[%emt 0:00:10]} 6. Nf3 {[%emt 0:00:05]} Bf5 {[%emt 0:00:02]} 7. Qb3 {[%emt 0:00:07]} Qb6 {[%emt 0:00:19]} 8. Qd1 {[%emt 0:00:35]} Nf6 {[%emt 0:00:12]} 9. e3 {[%emt 0:00:03]} Nbd7 {[%emt 0:00:08]} 10. Be2 {[%emt 0:00:06]} Bg7 {[%emt 0:00:06]} 11. Nh4 {[%emt 0:00:09]} Be6 {[%emt 0:00:11]} 12. O-O {[%emt 0:00:06]} O-O {[%emt 0:00:10]} 13. b3 {[%emt 0:00:03]} Ne4 {[%emt 0:00:15]} 14. Bb2 {[%emt 0:00:05]} Rad8 {[%emt 0:00:23]} 15. Rc1 {[%emt 0:00:05]} f5 {[%emt 0:00:26]} 16. Nf3 {[%emt 0:00:08]} Ndf6 {[%emt 0:00:29]} 17. Qc2 {[%emt 0:00:20]} Nxc3 {[%emt 0:00:10]} 18. Bxc3 {[%emt 0:00:02]} Ne4 {[%emt 0:00:00]} 19. Bb2 {[%emt 0:00:01]} f4 {[%emt 0:00:08]} 20. Bd3 {[%emt 0:00:08]} fxe3 {[%emt 0:00:14]} 21. fxe3 {[%emt 0:00:12]} Nd6 {[%emt 0:00:16]} 22. Ng5 {[%emt 0:00:13]} Bf5 {[%emt 0:00:27]} 23. Bxf5 {[%emt 0:00:07]} Rxf5 {[%emt 0:00:00]} 24. Ne6 {[%emt 0:00:10]} Re8 {[%emt 0:00:07]} 25. Nxg7 {[%emt 0:00:03]} Kxg7 26. Qd3 {[%emt 0:00:18]} Qc7 {[%emt 0:00:09]} 27. a4 {[%emt 0:00:22]} Rxf1+ {[%emt 0:00:16]} 28. Rxf1 {[%emt 0:00:01]} Nf5 29. Rf3 {[%emt 0:00:20]} Qe7 {[%emt 0:00:02]} 30. Bc1 {[%emt 0:00:11]} Qe4 {[%emt 0:00:00]} 31. Qxe4 {[%emt 0:00:29]} Rxe4 {[%emt 0:00:01]} 32. Kf2 {[%emt 0:00:11]} h5 {[%emt 0:00:15]} 33. g3 {[%emt 0:00:24]} h4 {[%emt 0:00:16]} 34. Bd2 {[%emt 0:00:28]} Kf6 {[%emt 0:00:14]} 35. b4 {[%emt 0:00:13]} hxg3+ {[%emt 0:00:03]} 36. hxg3 {[%emt 0:00:01]} Ke6 {[%emt 0:00:06]} 37. Bc3 {[%emt 0:00:11]} Nd6 {[%emt 0:00:05]} 38. Rf4 {[%emt 0:00:03]} Rxf4+ {[%emt 0:00:04]} 39. exf4 {[%emt 0:00:04]} Ne4+ {[%emt 0:00:00]} 40. Kf3 {[%emt 0:00:02]} Nxc3 {[%emt 0:00:01]} 41. g4 {[%emt 0:00:00]} Nxa4 {[%emt 0:00:02]} 42. f5+ {[%emt 0:00:03]} gxf5 {[%emt 0:00:01]} 43. g5 {[%emt 0:00:00]} Kf7 {[%emt 0:00:03]} 44. Kf4 {[%emt 0:00:02]} Kg6 {[%emt 0:00:01]} 45. Ke5 {[%emt 0:00:04]} Kxg5 {[%emt 0:00:02]} 46. Kd6 {[%emt 0:00:02]} f4 {[%emt 0:00:01]} 47. Kc7 {[%emt 0:00:01]} f3 {[%emt 0:00:02]} 48. Kxb7 {[%emt 0:00:04]} f2 49. Kxa7 f1=Q {[%emt 0:00:04]} 50. Kb7 {[%emt 0:00:04]} Qb5+ {[%emt 0:00:02]} 51. Kc7 {[%emt 0:00:01]} Qxb4 {[%emt 0:00:04]} 52. Kxc6 {[%emt 0:00:02]} Qxd4 {[%emt 0:00:03]} 53. Kb5 {[%emt 0:00:01]} Kf5 {[%emt 0:00:03]} 54. Ka5 {[%emt 0:00:03]} Ke5 {[%emt 0:00:01]} 55. Kb5 {[%emt 0:00:01]} Kd6 {[%emt 0:00:02]} 56. Ka5 {[%emt 0:00:03]} Kc6 {[%emt 0:00:05]} 57. Ka6 {[%emt 0:00:01]} Qb6# {[%emt 0:00:01]} 0-1

[Event "3rd FIDE WCCC Blitz G12 2019"]
[Site "Minsk"]
[Date "2019.08.18"]
[Round "6.4"]
[White "Shubenkova, Veronika"]
[Black "Ivanytska, Liudmyla"]
[Result "1-0"]
[ECO "D05"]
[WhiteElo "1740"]
[BlackElo "1539"]
[Annotator "NA"]
[PlyCount "177"]
[EventDate "2019.08.18"]
[EventType "swiss"]
[EventCountry "BLR"]
[SourceTitle "playchess.com"]
[Source "ChessBase"]
[SourceQuality "1"]
[TimeControl "300+2"]

1. d4 {[%emt 0:00:00]} d5 {[%emt 0:00:00]} 2. e3 {[%emt 0:00:01]} Nf6 {[%emt 0:00:00]} 3. Bd3 {[%emt 0:00:01]} e6 {[%emt 0:00:01]} 4. f4 {[%emt 0:00:01]} c5 {[%emt 0:00:09]} 5. c3 {[%emt 0:00:01]} Nbd7 {[%emt 0:00:04]} 6. Nf3 {[%emt 0:00:01]} b6 {[%emt 0:00:03]} 7. O-O {[%emt 0:00:02]} Bb7 {[%emt 0:00:01]} 8. Ne5 {[%emt 0:00:01]} Be7 {[%emt 0:00:18]} 9. Nd2 {[%emt 0:00:05]} O-O {[%emt 0:00:02]} 10. Rf3 {[%emt 0:00:01]} Ne4 {[%emt 0:00:05]} 11. Nxd7 {[%emt 0:00:13]} Qxd7 {[%emt 0:00:01]} 12. Rh3 {[%emt 0:00:01]} c4 {[%emt 0:00:12]} 13. Bxe4 {[%emt 0:00:03]} dxe4 {[%emt 0:00:01]} 14. Nxc4 {[%emt 0:00:04]} Qd5 {[%emt 0:00:18]} 15. Ne5 {[%emt 0:00:07]} f6 {[%emt 0:00:09]} 16. Ng4 {[%emt 0:00:03]} Rad8 {[%emt 0:00:11]} 17. Bd2 {[%emt 0:00:09]} Bc8 {[%emt 0:00:16]} 18. Rh5 {[%emt 0:00:09]} f5 {[%emt 0:00:16]} 19. Ne5 {[%emt 0:00:11]} Bf6 {[%emt 0:00:01]} 20. Rh3 {[%emt 0:00:17]} Bxe5 {[%emt 0:00:04]} 21. fxe5 {[%emt 0:00:02]} g6 {[%emt 0:00:07]} 22. Qe1 {[%emt 0:00:02]} Rf7 {[%emt 0:00:03]} 23. Qh4 {[%emt 0:00:03]} Rdf8 {[%emt 0:00:03]} 24. b3 {[%emt 0:00:15]} b5 {[%emt 0:00:01]} 25. Rf1 {[%emt 0:00:05]} Qb7 {[%emt 0:00:09]} 26. Rf2 {[%emt 0:00:37]} a5 {[%emt 0:00:11]} 27. Bc1 {[%emt 0:00:06]} a4 {[%emt 0:00:07]} 28. Ba3 {[%emt 0:00:02]} Re8 {[%emt 0:00:05]} 29. g4 {[%emt 0:00:04]} axb3 {[%emt 0:00:12]} 30. axb3 {[%emt 0:00:01]} Qa7 {[%emt 0:00:16]} 31. Bb4 {[%emt 0:00:03]} Qa1+ {[%emt 0:00:26]} 32. Kg2 {[%emt 0:00:09]} Qb1 {[%emt 0:00:07]} 33. gxf5 {[%emt 0:00:19]} exf5 {[%emt 0:00:03]} 34. Qf4 {[%emt 0:00:09]} Qxb3 {[%emt 0:00:08]} 35. Rg3 {[%emt 0:00:01]} Qe6 {[%emt 0:00:07]} 36. h4 {[%emt 0:00:02]} Rg7 {[%emt 0:00:03]} 37. Kh2 {[%emt 0:00:10]} Bd7 {[%emt 0:00:18]} 38. Rfg2 {[%emt 0:00:05]} Ra8 {[%emt 0:00:14]} 39. h5 {[%emt 0:00:02]} Ra2 {[%emt 0:00:04]} 40. hxg6 {[%emt 0:00:20]} hxg6 {[%emt 0:00:15]} 41. Qg5 {[%emt 0:00:50]} Rxg2+ {[%emt 0:00:22]} 42. Rxg2 {[%emt 0:00:02]} Qf7 {[%emt 0:00:11]} 43. Qf6 {[%emt 0:00:28]} Qxf6 {[%emt 0:00:10]} 44. exf6 {[%emt 0:00:01]} Rh7+ {[%emt 0:00:01]} 45. Kg3 {[%emt 0:00:06]} Kf7 {[%emt 0:00:02]} 46. Be7 {[%emt 0:00:01]} Be6 {[%emt 0:00:07]} 47. Kf4 {[%emt 0:00:09]} Bc4 {[%emt 0:00:04]} 48. Rg1 {[%emt 0:00:02]} Rh3 {[%emt 0:00:04]} 49. Ra1 {[%emt 0:00:03]} Rf3+ {[%emt 0:00:04]} 50. Ke5 {[%emt 0:00:01]} Rxe3 {[%emt 0:00:02]} 51. Ra8 {[%emt 0:00:01]} g5 {[%emt 0:00:05]} 52. Rf8+ {[%emt 0:00:03]} Kg6 {[%emt 0:00:01]} 53. d5 {[%emt 0:00:06]} Rd3 {[%emt 0:00:06]} 54. Rg8+ {[%emt 0:00:05]} Kf7 {[%emt 0:00:01]} 55. Rf8+ {[%emt 0:00:03]} Kg6 {[%emt 0:00:00]} 56. Rd8 {[%emt 0:00:01]} e3 {[%emt 0:00:06]} 57. Rg8+ {[%emt 0:00:05]} Kf7 {[%emt 0:00:04]} 58. Rf8+ {[%emt 0:00:02]} Kg6 {[%emt 0:00:01]} 59. Rg8+ {[%emt 0:00:01]} Kf7 {[%emt 0:00:01]} 60. Rf8+ {[%emt 0:00:01]} Kg6 {[%emt 0:00:01]} 61. Rg8+ {[%emt 0:00:01]} Kf7 {[%emt 0:00:10]} 62. Rf8+ {[%emt 0:00:01]} Kg6 {[%emt 0:00:01]} 63. Rg8+ {[%emt 0:00:01]} Kf7 {[%emt 0:00:02]} 64. Rf8+ {[%emt 0:00:02]} Kg6 {[%emt 0:00:01]} 65. Rg8+ {[%emt 0:00:00]} Kf7 {[%emt 0:00:01]} 66. Rf8+ {[%emt 0:00:01]} Kg6 {[%emt 0:00:00]} 67. Rg8+ {[%emt 0:00:01]} Kf7 {[%emt 0:00:01]} 68. Rf8+ {[%emt 0:00:01]} Kg6 {[%emt 0:00:01]} 69. Rg8+ {[%emt 0:00:01]} Kf7 {[%emt 0:00:01]} 70. Rf8+ {[%emt 0:00:00]} Kg6 {[%emt 0:00:01]} 71. Rg8+ {[%emt 0:00:01]} Kf7 {[%emt 0:00:07]} 72. Rf8+ {[%emt 0:00:01]} Kg6 {[%emt 0:00:04]} 73. Rg8+ {[%emt 0:00:01]} Kh5 {[%emt 0:00:05]} 74. Rh8+ {[%emt 0:00:03]} Kg4 {[%emt 0:00:02]} 75. f7 {[%emt 0:00:05]} Rxd5+ {[%emt 0:00:01]} 76. Kf6 {[%emt 0:00:01]} e2 {[%emt 0:00:02]} 77. Rh1 {[%emt 0:00:09]} Rd6+ {[%emt 0:00:04]} 78. Bxd6 {[%emt 0:00:01]} Bxf7 {[%emt 0:00:02]} 79. Kxf7 {[%emt 0:00:01]} f4 {[%emt 0:00:00]} 80. Ke6 {[%emt 0:00:02]} f3 {[%emt 0:00:01]} 81. Bc5 {[%emt 0:00:00]} Kg3 {[%emt 0:00:02]} 82. Rg1+ {[%emt 0:00:02]} Kh2 {[%emt 0:00:01]} 83. Kf5 {[%emt 0:00:01]} b4 {[%emt 0:00:05]} 84. cxb4 {[%emt 0:00:01]} g4 {[%emt 0:00:02]} 85. Kxg4 {[%emt 0:00:12]} f2 {[%emt 0:00:02]} 86. Bxf2 e1=Q {[%emt 0:00:05]} 87. Rxe1 {[%emt 0:00:05]} Kg2 {[%emt 0:00:02]} 88. Rc1 {[%emt 0:00:01]} Kxf2 {[%emt 0:00:01]} 89. b5 {[%emt 0:00:00]} 1-0

[Event "3rd FIDE WCCC Blitz G12 2019"]
[Site "Minsk"]
[Date "2019.08.18"]
[Round "6.5"]
[White "Korovina, Yana"]
[Black "Lomakina, Anzhelika"]
[Result "1-0"]
[ECO "C47"]
[WhiteElo "1511"]
[BlackElo "1732"]
[Annotator "NA"]
[PlyCount "97"]
[EventDate "2019.08.18"]
[EventType "swiss"]
[EventCountry "BLR"]
[SourceTitle "playchess.com"]
[Source "ChessBase"]
[SourceQuality "1"]
[TimeControl "300+2"]

1. e4 {[%emt 0:00:00]} e5 {[%emt 0:00:00]} 2. Nf3 Nc6 3. Nc3 {[%emt 0:00:03]} Nf6 {[%emt 0:00:00]} 4. Be2 {[%emt 0:00:02]} Be7 {[%emt 0:00:14]} 5. O-O {[%emt 0:00:02]} d5 {[%emt 0:00:05]} 6. exd5 {[%emt 0:00:03]} Nxd5 {[%emt 0:00:01]} 7. Bc4 {[%emt 0:00:03]} Nxc3 {[%emt 0:00:22]} 8. dxc3 {[%emt 0:00:16]} O-O {[%emt 0:00:05]} 9. h3 {[%emt 0:00:08]} Bf5 {[%emt 0:00:07]} 10. Qe2 {[%emt 0:00:09]} Bf6 {[%emt 0:00:30]} 11. Be3 {[%emt 0:00:07]} Qe7 {[%emt 0:00:08]} 12. Rad1 {[%emt 0:00:08]} Rad8 {[%emt 0:00:01]} 13. a3 {[%emt 0:00:02]} h6 {[%emt 0:00:19]} 14. Bb3 {[%emt 0:00:02]} Bg6 {[%emt 0:00:08]} 15. Rfe1 {[%emt 0:00:13]} Bh5 {[%emt 0:00:07]} 16. Bc1 {[%emt 0:00:48]} Rfe8 {[%emt 0:01:05]} 17. Qe4 {[%emt 0:00:14]} Bg6 {[%emt 0:00:33]} 18. Qe2 {[%emt 0:00:05]} e4 {[%emt 0:00:17]} 19. Nh2 {[%emt 0:00:14]} Bg5 {[%emt 0:00:55]} 20. Bxg5 {[%emt 0:00:12]} Qxg5 {[%emt 0:00:01]} 21. Qg4 {[%emt 0:00:04]} Ne5 {[%emt 0:00:16]} 22. Qxg5 {[%emt 0:00:03]} hxg5 {[%emt 0:00:01]} 23. Ng4 {[%emt 0:00:21]} Nxg4 {[%emt 0:00:03]} 24. hxg4 Kf8 25. Kf1 {[%emt 0:00:05]} f5 {[%emt 0:00:16]} 26. gxf5 {[%emt 0:00:02]} Bxf5 {[%emt 0:00:00]} 27. Ba4 {[%emt 0:00:09]} c6 {[%emt 0:00:08]} 28. Bb3 {[%emt 0:00:01]} Ke7 {[%emt 0:00:06]} 29. f3 {[%emt 0:00:12]} Rxd1 {[%emt 0:00:01]} 30. Rxd1 {[%emt 0:00:01]} exf3 {[%emt 0:00:04]} 31. gxf3 {[%emt 0:00:04]} Kf6 {[%emt 0:00:03]} 32. Rd6+ {[%emt 0:00:07]} Ke5 {[%emt 0:00:01]} 33. Rd1 {[%emt 0:00:01]} Kf4 {[%emt 0:00:03]} 34. Kf2 {[%emt 0:00:01]} g4 {[%emt 0:00:00]} 35. Rd4+ {[%emt 0:00:02]} Kg5 {[%emt 0:00:01]} 36. fxg4 {[%emt 0:00:11]} Bxg4 {[%emt 0:00:01]} 37. Rd2 {[%emt 0:00:01]} Rf8+ {[%emt 0:00:05]} 38. Kg3 {[%emt 0:00:11]} g6 {[%emt 0:00:03]} 39. Bc4 {[%emt 0:00:25]} Bf5 {[%emt 0:00:03]} 40. Bb3 {[%emt 0:00:04]} Re8 {[%emt 0:00:01]} 41. Rf2 {[%emt 0:00:03]} Re3+ {[%emt 0:00:02]} 42. Kg2 {[%emt 0:00:04]} Kg4 {[%emt 0:00:02]} 43. Bc4 {[%emt 0:00:16]} Be4+ {[%emt 0:00:03]} 44. Kg1 {[%emt 0:00:08]} g5 {[%emt 0:00:02]} 45. Be2+ {[%emt 0:00:03]} Rf3 {[%emt 0:00:02]} 46. Kg2 {[%emt 0:00:00]} Kf4 {[%emt 0:00:04]} 47. Bxf3 {[%emt 0:00:00]} Bxf3+ {[%emt 0:00:01]} 48. Rxf3+ {[%emt 0:00:00]} Ke4 {[%emt 0:00:01]} 49. Kg3 {[%emt 0:00:00]} 1-0